[Event "Early-Titled-Tuesday-Blitz-March-05-2024"]
[Site "Chess.com"]
[Date "2024.03.05"]
[Round "11"]
[White "BogdanDeac"]
[Black "ChessQueen"]
[Result "1-0"]
[WhiteElo "2979"]
[BlackElo "2764"]
[TimeControl "180+1"]
[EndTime "10:07:22 PST"]
[Termination "BogdanDeac won by resignation"]

1. e4 {[%clk 0:03:00.9]} 1... c6 {[%clk 0:02:55]} 2. Nf3 {[%clk 0:02:58.5]} 2...
d5 {[%clk 0:02:55.3]} 3. Nc3 {[%clk 0:02:59.1]} 3... dxe4 {[%clk 0:02:55.7]} 4.
Nxe4 {[%clk 0:03:00]} 4... Nf6 {[%clk 0:02:56.2]} 5. Qe2 {[%clk 0:03:00.4]} 5...
Nxe4 {[%clk 0:02:56.5]} 6. Qxe4 {[%clk 0:03:01.3]} 6... Nd7 {[%clk 0:02:56.9]}
7. Bc4 {[%clk 0:03:01.2]} 7... Nf6 {[%clk 0:02:57.3]} 8. Ne5 {[%clk 0:03:01.3]}
8... e6 {[%clk 0:02:57.8]} 9. Qe2 {[%clk 0:03:01.9]} 9... b5 {[%clk 0:02:58.2]}
10. Bd3 {[%clk 0:03:02.2]} 10... Bb7 {[%clk 0:02:52.8]} 11. a4 {[%clk
0:02:57.6]} 11... b4 {[%clk 0:02:48.9]} 12. b3 {[%clk 0:02:57.4]} 12... g6
{[%clk 0:02:44.9]} 13. Bb2 {[%clk 0:02:53.8]} 13... Bg7 {[%clk 0:02:45.3]} 14.
O-O-O {[%clk 0:02:54.3]} 14... O-O {[%clk 0:02:36.7]} 15. h4 {[%clk 0:02:54.7]}
15... Nd5 {[%clk 0:02:32.1]} 16. g3 {[%clk 0:02:53.1]} 16... f6 {[%clk 0:02:21]}
17. Nc4 {[%clk 0:02:50.6]} 17... Qd7 {[%clk 0:01:56.6]} 18. h5 {[%clk
0:02:49.4]} 18... g5 {[%clk 0:01:57.2]} 19. h6 {[%clk 0:02:49.4]} 19... Bh8
{[%clk 0:01:57.3]} 20. f4 {[%clk 0:02:49]} 20... f5 {[%clk 0:00:58.2]} 21. fxg5
{[%clk 0:02:33.7]} 21... Bxb2+ {[%clk 0:00:53.6]} 22. Kxb2 {[%clk 0:02:34.6]}
22... Rae8 {[%clk 0:00:47]} 23. Qe5 {[%clk 0:02:28.6]} 23... Qc7 {[%clk
0:00:43.4]} 24. Rde1 {[%clk 0:02:18.9]} 24... Qxe5+ {[%clk 0:00:42.9]} 25. Rxe5
{[%clk 0:02:18.2]} 25... Re7 {[%clk 0:00:39.1]} 26. Rhe1 {[%clk 0:02:14.1]}
26... Bc8 {[%clk 0:00:38.5]} 27. Nd6 {[%clk 0:02:14.3]} 27... Bd7 {[%clk
0:00:36.7]} 28. Nxf5 {[%clk 0:02:14.6]} 28... Ref7 {[%clk 0:00:32.9]} 29. Nd4
{[%clk 0:02:10.8]} 29... Rf2 {[%clk 0:00:30.4]} 30. Nxe6 {[%clk 0:02:07.2]}
30... Bxe6 {[%clk 0:00:30.3]} 31. Rxe6 {[%clk 0:02:07.2]} 31... Rxd2 {[%clk
0:00:31.2]} 32. Rxc6 {[%clk 0:02:05.2]} 32... Rff2 {[%clk 0:00:23.3]} 33. Rc8+
{[%clk 0:01:59.4]} 33... Kf7 {[%clk 0:00:23.3]} 34. Bxh7 {[%clk 0:01:59.6]}
34... Nc3 {[%clk 0:00:19.7]} 35. g6+ {[%clk 0:01:56.4]} 35... Kf6 {[%clk
0:00:18.8]} 36. Rf8+ {[%clk 0:01:56.1]} 36... Kg5 {[%clk 0:00:18.9]} 37. Rxf2
{[%clk 0:01:56.7]} 1-0

[Event "Early-Titled-Tuesday-Blitz-March-05-2024"]
[Site "Chess.com"]
[Date "2024.03.05"]
[Round "11"]
[White "ChessFanNM"]
[Black "Balla_Tamas"]
[Result "1-0"]
[WhiteElo "2277"]
[BlackElo "2414"]
[TimeControl "180+1"]
[EndTime "10:07:27 PST"]
[Termination "ChessFanNM won by checkmate"]

1. e4 {[%clk 0:02:59.5]} 1... c5 {[%clk 0:02:59.6]} 2. Nf3 {[%clk 0:02:55.9]}
2... Nc6 {[%clk 0:02:51.5]} 3. Bb5 {[%clk 0:02:55.4]} 3... Nf6 {[%clk
0:02:49.6]} 4. e5 {[%clk 0:02:49.2]} 4... Nd5 {[%clk 0:02:49.3]} 5. Nc3 {[%clk
0:02:46.9]} 5... Nc7 {[%clk 0:02:48.7]} 6. Bxc6 {[%clk 0:02:46.9]} 6... dxc6
{[%clk 0:02:48.9]} 7. O-O {[%clk 0:02:45.4]} 7... g6 {[%clk 0:02:49.1]} 8. d3
{[%clk 0:02:41.5]} 8... Bg7 {[%clk 0:02:49]} 9. h3 {[%clk 0:02:41.1]} 9... O-O
{[%clk 0:02:48.7]} 10. a4 {[%clk 0:02:41]} 10... a5 {[%clk 0:02:48.3]} 11. Ne4
{[%clk 0:02:33.3]} 11... b6 {[%clk 0:02:47.7]} 12. Bf4 {[%clk 0:02:29.5]} 12...
Ne6 {[%clk 0:02:40.2]} 13. Bg3 {[%clk 0:02:27.7]} 13... Nd4 {[%clk 0:02:31.3]}
14. Re1 {[%clk 0:02:17.4]} 14... h6 {[%clk 0:02:24.6]} 15. Rb1 {[%clk
0:02:12.9]} 15... Bf5 {[%clk 0:02:19.2]} 16. c3 {[%clk 0:01:56.6]} 16... Ne6
{[%clk 0:02:18.3]} 17. Qe2 {[%clk 0:01:50.5]} 17... Qd7 {[%clk 0:02:14.4]} 18.
Nh4 {[%clk 0:01:48.7]} 18... Rad8 {[%clk 0:02:08.7]} 19. Rbd1 {[%clk 0:01:35.8]}
19... Ng5 {[%clk 0:02:02.2]} 20. Nxg5 {[%clk 0:01:29.1]} 20... hxg5 {[%clk
0:02:01.7]} 21. Nf3 {[%clk 0:01:18]} 21... Bxd3 {[%clk 0:01:57.1]} 22. Qe3
{[%clk 0:01:18.1]} 22... c4 {[%clk 0:01:50.4]} 23. Qxg5 {[%clk 0:01:13.1]} 23...
b5 {[%clk 0:01:44.5]} 24. Qh4 {[%clk 0:01:13]} 24... Rfe8 {[%clk 0:01:31.4]} 25.
Ng5 {[%clk 0:01:09.1]} 25... Qf5 {[%clk 0:01:28.9]} 26. e6 {[%clk 0:00:59.1]}
26... f6 {[%clk 0:01:16.2]} 27. Qh7+ {[%clk 0:00:58.8]} 27... Kf8 {[%clk
0:01:16.3]} 28. Nf7 {[%clk 0:00:58.6]} 28... Rd5 {[%clk 0:01:10.6]} 29. Nh6
{[%clk 0:00:53.6]} 29... Bxh6 {[%clk 0:01:06.3]} 30. Qh8# {[%clk 0:00:50.4]} 1-0

[Event "Early-Titled-Tuesday-Blitz-March-05-2024"]
[Site "Chess.com"]
[Date "2024.03.05"]
[Round "11"]
[White "Chernov_Mikhail"]
[Black "RandomNoob04"]
[Result "0-1"]
[WhiteElo "2420"]
[BlackElo "2609"]
[TimeControl "180+1"]
[EndTime "10:07:28 PST"]
[Termination "RandomNoob04 won by resignation"]

1. e4 {[%clk 0:02:06.9]} 1... d5 {[%clk 0:02:59.4]} 2. exd5 {[%clk 0:02:06.5]}
2... Qxd5 {[%clk 0:03:00.3]} 3. Nc3 {[%clk 0:02:07.2]} 3... Qa5 {[%clk
0:03:00.9]} 4. d4 {[%clk 0:02:07.3]} 4... Nf6 {[%clk 0:03:01.1]} 5. Bc4 {[%clk
0:02:07.3]} 5... Bf5 {[%clk 0:03:01.2]} 6. Nf3 {[%clk 0:02:06.9]} 6... e6 {[%clk
0:03:01.4]} 7. O-O {[%clk 0:02:06.7]} 7... Bb4 {[%clk 0:03:01.1]} 8. Bd2 {[%clk
0:02:05.6]} 8... Nc6 {[%clk 0:03:00.1]} 9. a3 {[%clk 0:02:03.5]} 9... Bxc3
{[%clk 0:03:00.3]} 10. Bxc3 {[%clk 0:02:04.4]} 10... Qb6 {[%clk 0:03:01]} 11.
Qe2 {[%clk 0:02:03]} 11... O-O-O {[%clk 0:02:58.6]} 12. Rad1 {[%clk 0:02:01.6]}
12... Bg4 {[%clk 0:02:58.1]} 13. h3 {[%clk 0:01:56.2]} 13... Bxf3 {[%clk
0:02:53.2]} 14. Qxf3 {[%clk 0:01:57.1]} 14... Nxd4 {[%clk 0:02:53.8]} 15. Qf4
{[%clk 0:01:52.9]} 15... Nf5 {[%clk 0:02:40.1]} 16. g4 {[%clk 0:01:47.7]} 16...
Nd6 {[%clk 0:02:35.6]} 17. Bb3 {[%clk 0:01:38.8]} 17... h5 {[%clk 0:02:20.7]}
18. g5 {[%clk 0:01:37.7]} 18... Nfe4 {[%clk 0:02:20.8]} 19. Bxg7 {[%clk
0:01:29.2]} 19... Rhg8 {[%clk 0:02:18.8]} 20. Bd4 {[%clk 0:01:29.8]} 20... Nxg5
{[%clk 0:02:03.8]} 21. Kh2 {[%clk 0:01:22.2]} 21... Qc6 {[%clk 0:02:02.1]} 22.
Rd3 {[%clk 0:01:15.8]} 22... Nxh3 {[%clk 0:01:58.2]} 23. Qf3 {[%clk 0:01:05.3]}
23... Qxf3 {[%clk 0:01:56.6]} 24. Rxf3 {[%clk 0:01:06.2]} 24... Ng5 {[%clk
0:01:57.5]} 25. Rf4 {[%clk 0:01:00.5]} 25... Nde4 {[%clk 0:01:38.7]} 26. Be3
{[%clk 0:00:51.5]} 26... Nd2 {[%clk 0:01:14]} 27. Rd1 {[%clk 0:00:51.6]} 27...
Ndf3+ {[%clk 0:01:12.7]} 0-1

[Event "Early-Titled-Tuesday-Blitz-March-05-2024"]
[Site "Chess.com"]
[Date "2024.03.05"]
[Round "11"]
[White "ninguno46"]
[Black "TheAlienParty"]
[Result "1/2-1/2"]
[WhiteElo "2510"]
[BlackElo "2400"]
[TimeControl "180+1"]
[EndTime "10:07:34 PST"]
[Termination "Game drawn by repetition"]

1. e4 {[%clk 0:02:59.4]} 1... e5 {[%clk 0:02:58.9]} 2. Nf3 {[%clk 0:02:58.7]}
2... Nc6 {[%clk 0:02:58.5]} 3. d4 {[%clk 0:02:59.2]} 3... exd4 {[%clk
0:02:57.8]} 4. Bc4 {[%clk 0:02:59.8]} 4... Nf6 {[%clk 0:02:55.9]} 5. e5 {[%clk
0:03:00]} 5... d5 {[%clk 0:02:55.6]} 6. Bb5 {[%clk 0:03:00.5]} 6... Ne4 {[%clk
0:02:55.3]} 7. Nxd4 {[%clk 0:03:00.6]} 7... Bc5 {[%clk 0:02:54.9]} 8. Be3 {[%clk
0:02:59.9]} 8... Bxd4 {[%clk 0:02:49.1]} 9. Qxd4 {[%clk 0:02:56.3]} 9... O-O
{[%clk 0:02:48.2]} 10. Bxc6 {[%clk 0:02:55.3]} 10... bxc6 {[%clk 0:02:47.8]} 11.
Nd2 {[%clk 0:02:44.6]} 11... c5 {[%clk 0:02:35.8]} 12. Qa4 {[%clk 0:02:42.9]}
12... Nxd2 {[%clk 0:02:33.3]} 13. Bxd2 {[%clk 0:02:42.3]} 13... Bf5 {[%clk
0:02:30.8]} 14. O-O {[%clk 0:02:40.6]} 14... d4 {[%clk 0:02:27.5]} 15. Qc4
{[%clk 0:02:35.2]} 15... Qe7 {[%clk 0:02:23.2]} 16. Rfe1 {[%clk 0:02:22]} 16...
Rab8 {[%clk 0:02:17.6]} 17. b3 {[%clk 0:02:17.1]} 17... Be6 {[%clk 0:02:14.2]}
18. Qe2 {[%clk 0:02:15.1]} 18... Bd5 {[%clk 0:02:13.2]} 19. Qg4 {[%clk
0:02:13.7]} 19... Rb6 {[%clk 0:02:11.3]} 20. f3 {[%clk 0:02:07.4]} 20... Rg6
{[%clk 0:02:07.9]} 21. Qf4 {[%clk 0:02:05.5]} 21... Qd7 {[%clk 0:02:03.9]} 22.
Kf2 {[%clk 0:01:45.1]} 22... f6 {[%clk 0:01:43.6]} 23. e6 {[%clk 0:01:44.4]}
23... Bxe6 {[%clk 0:01:39.4]} 24. c4 {[%clk 0:01:37.6]} 24... dxc3 {[%clk
0:01:21.4]} 25. Bxc3 {[%clk 0:01:36.8]} 25... Rg5 {[%clk 0:01:21.1]} 26. Qe4
{[%clk 0:01:25.3]} 26... Bf7 {[%clk 0:01:17.6]} 27. Rad1 {[%clk 0:01:22.6]}
27... Rd5 {[%clk 0:01:11.7]} 28. Rxd5 {[%clk 0:01:21.9]} 28... Bxd5 {[%clk
0:01:10.4]} 29. Qe7 {[%clk 0:01:18]} 29... Qd6 {[%clk 0:01:03.4]} 30. Qxd6
{[%clk 0:01:12.9]} 30... cxd6 {[%clk 0:01:02.8]} 31. Re7 {[%clk 0:01:13.4]}
31... Rf7 {[%clk 0:00:49.8]} 32. Re8+ {[%clk 0:01:12.9]} 32... Rf8 {[%clk
0:00:49.6]} 33. Re7 {[%clk 0:01:13]} 33... Rf7 {[%clk 0:00:47.7]} 34. Re8+
{[%clk 0:01:13]} 34... Rf8 {[%clk 0:00:47.6]} 35. Re7 {[%clk 0:01:13.2]} 1/2-1/2

[Event "Early-Titled-Tuesday-Blitz-March-05-2024"]
[Site "Chess.com"]
[Date "2024.03.05"]
[Round "11"]
[White "Shushik"]
[Black "ValentunHulka"]
[Result "1-0"]
[WhiteElo "2576"]
[BlackElo "2746"]
[TimeControl "180+1"]
[EndTime "10:07:42 PST"]
[Termination "Shushik won by resignation"]

1. e4 {[%clk 0:03:00.9]} 1... c5 {[%clk 0:02:59.8]} 2. Ne2 {[%clk 0:03:00.9]}
2... Nf6 {[%clk 0:03:00.5]} 3. Nbc3 {[%clk 0:03:00.7]} 3... Nc6 {[%clk
0:03:00.7]} 4. d4 {[%clk 0:03:00.5]} 4... cxd4 {[%clk 0:03:01.6]} 5. Nxd4 {[%clk
0:03:01]} 5... e5 {[%clk 0:03:02.4]} 6. Ndb5 {[%clk 0:03:00.9]} 6... d6 {[%clk
0:03:03.1]} 7. Bg5 {[%clk 0:03:00.5]} 7... a6 {[%clk 0:03:03.8]} 8. Na3 {[%clk
0:03:01]} 8... b5 {[%clk 0:03:04.5]} 9. Nd5 {[%clk 0:03:01.2]} 9... Be7 {[%clk
0:03:05.2]} 10. Bxf6 {[%clk 0:03:01.9]} 10... Bxf6 {[%clk 0:03:05.9]} 11. c3
{[%clk 0:03:02.4]} 11... O-O {[%clk 0:03:06]} 12. Nc2 {[%clk 0:03:02.7]} 12...
Rb8 {[%clk 0:03:06.7]} 13. h4 {[%clk 0:02:56.8]} 13... Be7 {[%clk 0:03:06.5]}
14. g3 {[%clk 0:02:54.4]} 14... Be6 {[%clk 0:03:06.9]} 15. Bg2 {[%clk
0:02:46.4]} 15... Qd7 {[%clk 0:03:07.3]} 16. Qd2 {[%clk 0:02:37.5]} 16... Bd8
{[%clk 0:03:07.5]} 17. O-O-O {[%clk 0:02:25.3]} 17... a5 {[%clk 0:03:04.6]} 18.
f4 {[%clk 0:02:18.5]} 18... Bg4 {[%clk 0:02:55]} 19. Rdf1 {[%clk 0:02:16.4]}
19... b4 {[%clk 0:02:55.1]} 20. f5 {[%clk 0:02:07.5]} 20... bxc3 {[%clk
0:02:52.9]} 21. Qxc3 {[%clk 0:02:04.2]} 21... Nb4 {[%clk 0:02:43.7]} 22. Ndxb4
{[%clk 0:01:54.3]} 22... axb4 {[%clk 0:02:43.5]} 23. Qb3 {[%clk 0:01:54.2]}
23... Qc6 {[%clk 0:02:22.7]} 24. Kb1 {[%clk 0:01:52.7]} 24... Qb5 {[%clk
0:01:48.2]} 25. Rc1 {[%clk 0:01:51]} 25... Be2 {[%clk 0:01:47.9]} 26. Bf1 {[%clk
0:01:48.1]} 26... Bxf1 {[%clk 0:01:44]} 27. Rhxf1 {[%clk 0:01:49]} 27... Bb6
{[%clk 0:01:27]} 28. f6 {[%clk 0:01:46.5]} 28... g6 {[%clk 0:01:20]} 29. h5
{[%clk 0:01:34]} 29... Rfc8 {[%clk 0:01:06.3]} 30. hxg6 {[%clk 0:01:32.8]} 30...
hxg6 {[%clk 0:01:07.2]} 31. Rh1 {[%clk 0:01:30]} 31... Bd8 {[%clk 0:00:49.6]}
32. Rh8+ {[%clk 0:01:23.7]} 32... Kxh8 {[%clk 0:00:46.2]} 33. Qxf7 {[%clk
0:01:24.3]} 33... Bxf6 {[%clk 0:00:22.4]} 34. Rh1+ {[%clk 0:01:24.3]} 1-0

[Event "Early-Titled-Tuesday-Blitz-March-05-2024"]
[Site "Chess.com"]
[Date "2024.03.05"]
[Round "11"]
[White "Elsa167"]
[Black "K_A_S_T_O_R"]
[Result "0-1"]
[WhiteElo "2902"]
[BlackElo "2802"]
[TimeControl "180+1"]
[EndTime "10:07:47 PST"]
[Termination "K_A_S_T_O_R won by resignation"]

1. f4 {[%clk 0:03:00.9]} 1... d5 {[%clk 0:02:57.4]} 2. Nf3 {[%clk 0:03:01]} 2...
Nh6 {[%clk 0:02:56.8]} 3. g3 {[%clk 0:03:00.8]} 3... g6 {[%clk 0:02:57]} 4. Bg2
{[%clk 0:03:00.8]} 4... Bg7 {[%clk 0:02:57.5]} 5. O-O {[%clk 0:03:01.5]} 5... c6
{[%clk 0:02:57.7]} 6. d3 {[%clk 0:03:02.1]} 6... Qb6+ {[%clk 0:02:57.2]} 7. Kh1
{[%clk 0:03:01.6]} 7... Bxb2 {[%clk 0:02:53.1]} 8. Bxb2 {[%clk 0:03:00]} 8...
Qxb2 {[%clk 0:02:53.4]} 9. Nbd2 {[%clk 0:03:00.3]} 9... Ng4 {[%clk 0:02:51.7]}
10. Rb1 {[%clk 0:02:43.4]} 10... Qa3 {[%clk 0:02:49.2]} 11. Rb3 {[%clk
0:02:37.3]} 11... Qa5 {[%clk 0:02:48.8]} 12. d4 {[%clk 0:02:35.9]} 12... f5
{[%clk 0:02:40.1]} 13. c4 {[%clk 0:02:31.2]} 13... Nd7 {[%clk 0:02:35.1]} 14. h3
{[%clk 0:02:16.2]} 14... Ngf6 {[%clk 0:02:33.6]} 15. Ne5 {[%clk 0:02:16.8]}
15... e6 {[%clk 0:02:31.3]} 16. g4 {[%clk 0:02:08.9]} 16... O-O {[%clk
0:02:22.8]} 17. g5 {[%clk 0:02:07.5]} 17... Nxe5 {[%clk 0:02:16.4]} 18. dxe5
{[%clk 0:01:59]} 18... Ne4 {[%clk 0:02:12.9]} 19. cxd5 {[%clk 0:01:47.5]} 19...
Qxd2 {[%clk 0:02:03.4]} 20. Bxe4 {[%clk 0:01:31.2]} 20... Qxd1 {[%clk 0:02:03]}
21. Rxd1 {[%clk 0:01:32.1]} 21... fxe4 {[%clk 0:02:00.5]} 22. d6 {[%clk
0:01:32.8]} 22... Rf7 {[%clk 0:02:00.9]} 23. e3 {[%clk 0:01:27.9]} 23... b6
{[%clk 0:01:58.8]} 24. Kg2 {[%clk 0:01:27.3]} 24... c5 {[%clk 0:01:57.6]} 25.
Kg3 {[%clk 0:01:28]} 25... Bb7 {[%clk 0:01:57.4]} 26. h4 {[%clk 0:01:28.7]}
26... h5 {[%clk 0:01:56.5]} 27. gxh6 {[%clk 0:01:26]} 27... Kh7 {[%clk
0:01:56.4]} 28. h5 {[%clk 0:01:20.5]} 28... Rg8 {[%clk 0:01:54.3]} 29. hxg6+
{[%clk 0:01:13.3]} 29... Rxg6+ {[%clk 0:01:54]} 30. Kf2 {[%clk 0:01:13.6]} 30...
Bc6 {[%clk 0:01:52.5]} 31. Rbb1 {[%clk 0:00:59.5]} 31... Rxh6 {[%clk 0:01:52.2]}
32. Rh1 {[%clk 0:00:59.2]} 32... Rxh1 {[%clk 0:01:51.4]} 33. Rxh1+ {[%clk
0:01:00.1]} 33... Kg7 {[%clk 0:01:51.4]} 34. Kg3 {[%clk 0:00:59.3]} 34... c4
{[%clk 0:01:46.7]} 35. Kf2 {[%clk 0:00:51.7]} 35... b5 {[%clk 0:01:46]} 36. a3
{[%clk 0:00:52.2]} 36... a5 {[%clk 0:01:45.6]} 37. Rb1 {[%clk 0:00:52.8]} 37...
Rb7 {[%clk 0:01:45.5]} 38. f5 {[%clk 0:00:51.3]} 38... exf5 {[%clk 0:01:44.6]}
39. Kg3 {[%clk 0:00:48]} 39... Bd7 {[%clk 0:01:42.4]} 40. Kf4 {[%clk 0:00:48.4]}
40... c3 {[%clk 0:01:42.3]} 41. Rg1+ {[%clk 0:00:47.1]} 41... Kf7 {[%clk
0:01:42.4]} 42. Rh1 {[%clk 0:00:46.9]} 42... b4 {[%clk 0:01:40.2]} 43. axb4
{[%clk 0:00:46.7]} 43... axb4 {[%clk 0:01:39.7]} 44. Kg5 {[%clk 0:00:43.8]}
44... c2 {[%clk 0:01:38.6]} 45. Rh7+ {[%clk 0:00:40.9]} 45... Ke6 {[%clk
0:01:38.7]} 46. Re7+ {[%clk 0:00:41.2]} 46... Kd5 {[%clk 0:01:38.9]} 47. e6
{[%clk 0:00:41.5]} 0-1

[Event "Early-Titled-Tuesday-Blitz-March-05-2024"]
[Site "Chess.com"]
[Date "2024.03.05"]
[Round "11"]
[White "AsaHoffmann"]
[Black "TheMagician"]
[Result "1/2-1/2"]
[WhiteElo "2408"]
[BlackElo "2219"]
[TimeControl "180+1"]
[EndTime "10:07:47 PST"]
[Termination "Game drawn by repetition"]

1. d4 {[%clk 0:02:50]} 1... d5 {[%clk 0:02:58.9]} 2. Bg5 {[%clk 0:02:48.5]} 2...
h6 {[%clk 0:02:57.5]} 3. Bh4 {[%clk 0:02:48.2]} 3... c6 {[%clk 0:02:52.1]} 4. e3
{[%clk 0:02:47.6]} 4... Bf5 {[%clk 0:02:52.1]} 5. Bd3 {[%clk 0:02:47.2]} 5...
Bxd3 {[%clk 0:02:51.8]} 6. Qxd3 {[%clk 0:02:47.3]} 6... Qb6 {[%clk 0:02:51.4]}
7. b3 {[%clk 0:02:47.2]} 7... e6 {[%clk 0:02:49.9]} 8. Nd2 {[%clk 0:02:46.7]}
8... Be7 {[%clk 0:02:50.1]} 9. Bg3 {[%clk 0:02:46.1]} 9... Nd7 {[%clk
0:02:46.1]} 10. Ngf3 {[%clk 0:02:45.8]} 10... Ngf6 {[%clk 0:02:45.8]} 11. O-O
{[%clk 0:02:45.4]} 11... O-O {[%clk 0:02:45.4]} 12. c4 {[%clk 0:02:45.3]} 12...
a5 {[%clk 0:02:44.3]} 13. h3 {[%clk 0:02:45]} 13... Qa6 {[%clk 0:02:44]} 14.
Rfc1 {[%clk 0:02:44.1]} 14... a4 {[%clk 0:02:43.4]} 15. e4 {[%clk 0:02:43.3]}
15... axb3 {[%clk 0:02:41]} 16. axb3 {[%clk 0:02:42.1]} 16... Qxa1 {[%clk
0:02:39.8]} 17. Rxa1 {[%clk 0:02:41.9]} 17... Rxa1+ {[%clk 0:02:40.3]} 18. Kh2
{[%clk 0:02:42.1]} 18... dxe4 {[%clk 0:02:35.4]} 19. Nxe4 {[%clk 0:02:41.8]}
19... Nxe4 {[%clk 0:02:34.7]} 20. Qxe4 {[%clk 0:02:41.7]} 20... Ra3 {[%clk
0:02:25.5]} 21. Qb1 {[%clk 0:02:24.1]} 21... Rfa8 {[%clk 0:02:22.9]} 22. b4
{[%clk 0:02:23.8]} 22... R3a4 {[%clk 0:02:21.3]} 23. c5 {[%clk 0:02:16.3]} 23...
Ra1 {[%clk 0:01:59.2]} 24. Qe4 {[%clk 0:02:10.6]} 24... Nf6 {[%clk 0:01:56.8]}
25. Qe5 {[%clk 0:02:06.7]} 25... Nd5 {[%clk 0:01:56.8]} 26. Qh5 {[%clk
0:02:00.9]} 26... Nf6 {[%clk 0:01:43.3]} 27. Qe5 {[%clk 0:01:55.8]} 27... Rc8
{[%clk 0:01:40.7]} 28. Bh4 {[%clk 0:01:52.6]} 28... Raa8 {[%clk 0:01:27.7]} 29.
Bxf6 {[%clk 0:01:43.4]} 29... Bxf6 {[%clk 0:01:27.3]} 30. Qe4 {[%clk 0:01:41.6]}
30... Rd8 {[%clk 0:01:27.3]} 31. Ne5 {[%clk 0:01:41.3]} 31... Bxe5+ {[%clk
0:01:26.4]} 32. Qxe5 {[%clk 0:01:38]} 32... Rd7 {[%clk 0:01:26.3]} 33. Qe3
{[%clk 0:01:29.1]} 33... Rad8 {[%clk 0:01:25.8]} 34. b5 {[%clk 0:01:29]} 34...
cxb5 {[%clk 0:01:21.8]} 35. Qb3 {[%clk 0:01:28.6]} 35... Rxd4 {[%clk 0:01:21.7]}
36. Qxb5 {[%clk 0:01:28.6]} 36... R4d7 {[%clk 0:01:21.7]} 37. c6 {[%clk
0:01:28.2]} 37... bxc6 {[%clk 0:01:21.8]} 38. Qxc6 {[%clk 0:01:28.2]} 38... Rd2
{[%clk 0:01:22.3]} 39. f3 {[%clk 0:01:27.9]} 39... Rb2 {[%clk 0:01:19.2]} 40. h4
{[%clk 0:01:20.5]} 40... Rdd2 {[%clk 0:01:18.3]} 41. Kh3 {[%clk 0:01:18.5]}
41... Rxg2 {[%clk 0:01:15.6]} 42. Qe8+ {[%clk 0:01:18]} 42... Kh7 {[%clk
0:01:15.1]} 43. Qxf7 {[%clk 0:01:18]} 43... Rh2+ {[%clk 0:01:01.5]} 44. Kg3
{[%clk 0:01:14]} 44... Rhg2+ {[%clk 0:01:01.2]} 45. Kh3 {[%clk 0:01:13.8]} 45...
Rh2+ {[%clk 0:01:00.4]} 46. Kg3 {[%clk 0:01:13.8]} 46... Rhg2+ {[%clk
0:01:00.7]} 47. Kh3 {[%clk 0:01:12.8]} 1/2-1/2

[Event "Early-Titled-Tuesday-Blitz-March-05-2024"]
[Site "Chess.com"]
[Date "2024.03.05"]
[Round "11"]
[White "Azalea95"]
[Black "Eliwood44"]
[Result "1-0"]
[WhiteElo "2408"]
[BlackElo "2505"]
[TimeControl "180+1"]
[EndTime "10:08:12 PST"]
[Termination "Azalea95 won by resignation"]

1. e4 {[%clk 0:03:00.9]} 1... e5 {[%clk 0:02:58.4]} 2. Nf3 {[%clk 0:03:00.7]}
2... Nc6 {[%clk 0:02:54.6]} 3. Bc4 {[%clk 0:03:00.1]} 3... Nf6 {[%clk
0:02:54.2]} 4. Ng5 {[%clk 0:02:57.4]} 4... Bc5 {[%clk 0:02:51.8]} 5. Bxf7+
{[%clk 0:02:56.6]} 5... Ke7 {[%clk 0:02:51.3]} 6. Bb3 {[%clk 0:02:57.3]} 6...
Rf8 {[%clk 0:02:50.7]} 7. O-O {[%clk 0:02:55.4]} 7... h6 {[%clk 0:02:50]} 8. Nf3
{[%clk 0:02:47.7]} 8... d6 {[%clk 0:02:49.6]} 9. d3 {[%clk 0:02:46.4]} 9... Bg4
{[%clk 0:02:48.6]} 10. Be3 {[%clk 0:02:46.9]} 10... Qe8 {[%clk 0:02:47.6]} 11.
Nbd2 {[%clk 0:02:46.7]} 11... Qh5 {[%clk 0:02:46.6]} 12. c3 {[%clk 0:02:36.5]}
12... Nh7 {[%clk 0:02:45.4]} 13. Qe2 {[%clk 0:02:11.4]} 13... Rf6 {[%clk
0:02:36.7]} 14. Bd1 {[%clk 0:02:06.2]} 14... Raf8 {[%clk 0:02:34.4]} 15. Bxc5
{[%clk 0:02:06.3]} 15... dxc5 {[%clk 0:02:33.8]} 16. Qe3 {[%clk 0:02:06.8]}
16... b6 {[%clk 0:02:30]} 17. h3 {[%clk 0:01:50.6]} 17... Bxh3 {[%clk
0:02:28.5]} 18. Nh2 {[%clk 0:01:49.5]} 18... Qg6 {[%clk 0:02:24.4]} 19. Qxh3
{[%clk 0:01:48.3]} 19... Ng5 {[%clk 0:02:23.7]} 20. Qh5 {[%clk 0:01:38.3]} 20...
Qh7 {[%clk 0:02:21.2]} 21. Ndf3 {[%clk 0:01:29.6]} 21... Ne6 {[%clk 0:02:19.3]}
22. Nxe5 {[%clk 0:01:25.4]} 22... Ncd8 {[%clk 0:02:11.5]} 23. Bg4 {[%clk
0:01:14.8]} 23... Nf4 {[%clk 0:02:08.8]} 24. Qh4 {[%clk 0:01:08.8]} 24... h5
{[%clk 0:02:06.3]} 25. Bd1 {[%clk 0:01:03.2]} 25... g5 {[%clk 0:02:05.6]} 26.
Qg3 {[%clk 0:00:58.3]} 26... Nde6 {[%clk 0:01:55.3]} 27. Re1 {[%clk 0:00:51.8]}
27... h4 {[%clk 0:01:49.4]} 28. Qe3 {[%clk 0:00:46.7]} 28... h3 {[%clk
0:01:47.9]} 29. g3 {[%clk 0:00:46.8]} 29... Ng2 {[%clk 0:01:48.1]} 30. Qe2
{[%clk 0:00:43.4]} 30... Nxe1 {[%clk 0:01:46.2]} 31. Qxe1 {[%clk 0:00:44.3]}
31... Rxf2 {[%clk 0:01:31.7]} 32. Qxf2 {[%clk 0:00:45.2]} 32... Rxf2 {[%clk
0:01:32.2]} 33. Kxf2 {[%clk 0:00:46.1]} 33... Qg7 {[%clk 0:01:27.6]} 34. Nhg4
{[%clk 0:00:44.3]} 34... b5 {[%clk 0:01:21.9]} 35. Be2 {[%clk 0:00:41.6]} 35...
a5 {[%clk 0:01:21.5]} 36. Rh1 {[%clk 0:00:41]} 36... Qh7 {[%clk 0:01:16.3]} 37.
Ne3 {[%clk 0:00:32.5]} 37... b4 {[%clk 0:01:11.6]} 38. Bg4 {[%clk 0:00:31.2]}
38... bxc3 {[%clk 0:01:09]} 39. bxc3 {[%clk 0:00:32.1]} 39... Qg7 {[%clk
0:01:07.4]} 40. Nf5+ {[%clk 0:00:32]} 40... Kf6 {[%clk 0:01:07]} 41. Nxg7 {[%clk
0:00:32.9]} 1-0